bitfinex-derivatives/quotes_ETHF0:USTF0_20260207
["timestamp","ask_amount","ask_price","bid_price","bid_amount"]
[1770501984763,0.01987864,2099.8,2099.2,0.57553495]
[1770501991072,0.00562114,2099.9,2099.2,0.57553495]
[1770501995367,2.8466958,2100.0,2099.2,0.57553495]
[1770501995573,2.8466958,2100.2,2099.5,0.57702059]
[1770501995868,2.8508343,2100.3,2099.5,0.57702059]
[1770501996171,0.0041385,2100.2,2099.5,0.57702059]
[1770501996774,2.8508343,2100.2,2099.5,0.57702059]
[1770501997673,0.0041385,2100.2,2099.5,0.57702059]
[1770501998576,2.8466958,2100.3,2099.5,0.57702059]
[1770501998780,2.85503776,2100.3,2099.5,0.57702059]
[1770501999082,2.8466958,2100.3,2099.5,0.57702059]
[1770502007182,2.8466958,2100.3,2099.6,0.57968918]
[1770502010281,2.26689349,2100.3,2099.6,0.57968918]
[1770502010485,0.54400413,2100.7,2100.0,0.54443535]
[1770502011387,0.54748349,2100.7,2100.0,0.54443535]
[1770502014079,0.54748349,2100.7,2099.8,2.84761029]
[1770502014389,0.54400413,2100.4,2099.5,0.54443535]
[1770502015188,0.54400413,2100.3,2099.5,0.54443535]
[1770502017292,0.54400413,2100.3,2099.6,0.54443535]
[1770502023492,0.54400413,2100.1,2099.6,0.54443535]
[1770502028503,0.55142214,2099.9,2099.5,0.56217602]
[1770502029297,0.55142214,2099.9,2099.4,7.68814562]
[1770502029497,0.55142214,2099.9,2099.5,0.56217602]
[1770502033907,42.60442846,2100.6,2099.8,0.54336106]
[1770502034104,0.56348994,2100.5,2099.8,0.54336106]
[1770502034402,0.56348994,2100.4,2099.8,0.54336106]
[1770502038106,42.60442846,2100.6,2099.8,0.54336106]
[1770502038306,0.00347936,2100.7,2100.1,0.54336106]
[1770502038509,0.5669693,2100.7,2100.1,0.54336106]
[1770502039211,0.00347936,2100.7,2100.1,0.54336106]
[1770502040911,42.60442846,2101.0,2100.1,0.54336106]
[1770502041108,0.56184486,2101.3,2100.9,0.54336106]
[1770502041312,42.60442846,2101.7,2100.9,0.54336106]
[1770502041509,0.56348994,2102.4,2101.5,0.54336106]
[1770502041908,0.56916437,2102.4,2101.7,0.54336106]
[1770502042115,0.56348994,2102.8,2101.9,0.54336106]
[1770502042508,0.56348994,2102.8,2102.1,0.54336106]
[1770502043015,0.56348994,2102.6,2101.9,0.54336106]
[1770502043322,0.56348994,2103.1,2102.3,0.54336106]
[1770502044011,6.52889469,2103.9,2102.3,0.54336106]
[1770502044212,0.56348994,2103.8,2102.3,0.54336106]
[1770502044510,0.56966029,2103.8,2102.3,0.54336106]
[1770502045813,0.00617035,2103.8,2102.6,0.54336106]
[1770502046015,0.56348994,2104.2,2103.0,0.54336106]
[1770502047011,0.56348994,2104.2,2103.0,0.54709085]
[1770502047214,0.56348994,2105.4,2103.8,0.54336106]
[1770502047515,0.56348994,2105.4,2103.6,0.54336106]
[1770502047723,0.23767,2105.2,2103.6,0.54336106]
[1770502047920,0.56348994,2104.9,2103.1,0.54336106]
[1770502048222,0.56348994,2104.7,2103.1,0.54336106]
[1770502048617,0.56348994,2104.5,2103.0,0.00372979]
[1770502049117,0.80122994,2104.5,2103.0,0.00372979]
[1770502049317,0.56348994,2104.4,2103.0,0.00372979]
[1770502050118,0.56348994,2104.4,2103.0,0.54709085]
[1770502050314,0.56348994,2104.4,2103.0,0.00372979]
[1770502052420,0.56348994,2104.4,2103.1,0.54336106]
[1770502056629,0.53965023,2104.8,2103.2,0.55218754]
[1770502057426,0.00413312,2104.9,2103.7,0.79001754]
[1770502057629,0.00413312,2104.9,2103.8,0.55218754]
[1770502058328,0.00413312,2104.9,2103.9,0.23781]
[1770502058627,0.53965023,2105.2,2104.0,0.55218754]
[1770502059031,0.53965023,2105.8,2104.0,0.55218754]
[1770502059227,0.53965023,2105.8,2104.1,0.55218754]
[1770502059532,0.54529599,2105.8,2104.2,0.55218754]
[1770502059728,0.00564576,2105.8,2104.6,0.55218754]
[1770502059928,0.53965023,2106.6,2105.2,0.55218754]
[1770502060429,0.77716023,2106.6,2105.2,0.55218754]
[1770502060635,0.08266239,2107.1,2104.6,0.55218754]
[1770502060636,0.53965023,2106.4,2104.6,0.55218754]
[1770502061027,0.54541494,2106.4,2104.6,0.55777774]
[1770502061834,0.53965023,2106.3,2104.6,0.55777774]
[1770502062631,0.53965023,2106.2,2104.6,0.0055902]
[1770502062832,0.53965023,2105.8,2104.6,0.0055902]
[1770502063632,0.53965023,2105.7,2104.7,0.55218754]
[1770502066531,0.53965023,2105.9,2104.7,0.55218754]
[1770502069131,0.00576471,2106.4,2104.7,0.55218754]
[1770502069438,0.53965023,2106.1,2104.7,0.55218754]
[1770502071335,0.53965023,2106.1,2104.6,0.55777774]
[1770502071838,0.53965023,2106.0,2104.6,0.55777774]
[1770502074041,0.54541494,2106.4,2104.9,0.55218754]
[1770502074341,0.54541494,2106.4,2105.2,0.55218754]
[1770502076141,0.00576471,2106.4,2105.8,0.55218754]
[1770502076342,0.54541494,2106.4,2105.8,0.55218754]
[1770502076744,0.00576471,2106.4,2105.8,0.55218754]
[1770502077244,0.53965023,2107.1,2105.8,0.55218754]
[1770502078248,0.54400114,2107.1,2105.9,0.55218754]
[1770502083245,0.00435091,2107.1,2106.0,0.78975754]
[1770502083447,0.54400114,2107.1,2106.1,0.55218754]
[1770502083646,0.54400114,2107.1,2106.1,0.55611851]
[1770502084248,0.00435091,2107.1,2106.1,0.55611851]
[1770502084751,0.00435091,2107.1,2106.3,0.55218754]
[1770502084946,0.54400114,2107.1,2106.3,0.55218754]
[1770502085643,0.00435091,2107.1,2106.3,0.55218754]
[1770502087244,0.53382418,2107.1,2106.3,0.55218754]
[1770502087549,0.53382418,2107.3,2106.3,0.55218754]
[1770502088346,0.53913016,2107.3,2106.3,0.55218754]
[1770502089556,0.53382418,2107.9,2106.8,0.53383537]
[1770502091155,0.53902643,2107.9,2106.8,0.53383537]
[1770502091347,0.00520225,2107.9,2106.8,0.53383537]
[1770502091655,0.57335753,2107.9,2107.0,0.53383537]
[1770502095163,0.57335753,2107.9,2106.8,0.56324059]
[1770502096350,0.57335753,2107.9,2106.5,0.56324059]
[1770502098059,0.56815528,2107.8,2106.5,0.56324059]
[1770502103267,0.56815528,2107.7,2106.5,0.56324059]
[1770502104468,0.56815528,2107.7,2106.7,0.56324059]
[1770502104869,0.56815528,2107.8,2106.8,0.56324059]
[1770502107072,0.56815528,2107.7,2106.6,3.35252376]
[1770502107270,0.56815528,2107.7,2106.7,0.56324059]
[1770502108672,0.56815528,2107.7,2106.7,3.35252376]
[1770502108967,0.56815528,2107.7,2106.8,0.56324059]
[1770502111475,0.56815528,2107.7,2106.9,0.56324059]
[1770502113482,0.56815528,2107.5,2106.6,0.56324059]
[1770502113677,0.56815528,2107.4,2106.6,0.56324059]
[1770502114782,0.48736252,2107.4,2106.6,0.56324059]
[1770502117285,0.48462431,2107.6,2106.7,0.54902491]
[1770502117484,0.48462431,2107.6,2106.8,0.54902491]
[1770502118376,0.48462431,2107.6,2106.9,0.54902491]
[1770502124985,0.0061783,2107.7,2106.9,0.54902491]
[1770502126286,0.0061783,2107.7,2107.0,0.57969599]
[1770502126483,0.01462906,2107.9,2107.1,0.57966441]
[1770502127387,0.01110066,2107.8,2107.1,0.57966441]
[1770502130286,0.01110066,2107.8,2107.0,0.59117814]
[1770502132387,0.00268141,2107.7,2107.0,0.59117814]
[1770502132588,0.00268141,2107.7,2106.6,3.37949769]
[1770502132889,0.00268141,2107.6,2106.6,0.59021452]
[1770502135296,0.01107489,2107.5,2106.6,0.59021452]
[1770502138596,0.02018671,2107.4,2106.3,0.59037823]
[1770502138794,0.02018671,2107.5,2106.4,0.59037823]
[1770502138993,0.02018671,2107.5,2106.5,0.59037823]
[1770502139193,0.0330405,2107.6,2106.6,0.59037823]
[1770502139388,0.01,2107.6,2106.6,3.3796614]
[1770502139695,0.01,2107.6,2106.7,0.57908188]
[1770502140698,0.01,2107.6,2106.7,3.36836505]
[1770502140893,0.01,2107.6,2106.8,0.57902942]
[1770502142693,0.00520225,2107.9,2106.8,0.57902942]
[1770502142894,0.00520225,2107.9,2107.0,0.58547476]
[1770502143095,0.04121361,2108.4,2107.2,0.58287364]
[1770502143999,0.0452314,2108.4,2107.2,0.58287364]
[1770502144200,0.0452314,2108.4,2107.3,0.58257226]
[1770502144901,42.63537498,2108.3,2107.3,0.58257226]
[1770502145102,0.05250939,2108.2,2107.3,0.58257226]
[1770502146302,0.0618672,2108.1,2107.3,0.58257226]
[1770502146497,0.06200718,2108.0,2107.3,0.58257226]
[1770502146703,0.59763871,2107.9,2106.9,0.57678792]
[1770502147403,42.58286559,2108.1,2107.0,0.57678792]
[1770502147703,0.6016565,2108.4,2107.3,0.57678792]
[1770502148003,0.6016565,2108.4,2107.4,0.57678792]
[1770502148603,0.59763871,2108.3,2107.4,0.57678792]
[1770502151800,0.61484751,2108.0,2107.1,0.57747123]
[1770502152003,0.61484751,2107.8,2107.1,0.57747123]
[1770502152410,0.61484751,2107.7,2106.9,0.57747123]
[1770502153114,0.61484751,2107.6,2106.9,0.57747123]
[1770502153502,0.61484751,2107.6,2106.7,0.57747123]
[1770502153906,0.61484751,2107.3,2106.5,0.57747123]
[1770502154511,43.1977131,2107.4,2106.5,0.57747123]
[1770502154714,0.61484751,2107.3,2106.5,0.57747123]
[1770502155818,43.1977131,2107.5,2106.5,0.57747123]
[1770502156019,0.61484751,2107.4,2106.5,0.57747123]
[1770502158318,43.1977131,2107.6,2106.5,0.57747123]
[1770502158517,0.61484751,2107.5,2106.5,0.57747123]
[1770502159623,0.61484751,2107.4,2106.5,0.57747123]
[1770502159916,0.61484751,2107.3,2106.5,0.57747123]
[1770502160218,42.58286559,2107.4,2106.5,0.57747123]
[1770502160219,0.61484751,2107.2,2106.5,0.57747123]
[1770502160417,0.61484751,2107.2,2106.2,0.57747123]
[1770502165113,43.4351331,2107.4,2106.2,0.57747123]
[1770502165312,0.61484751,2107.4,2106.2,0.57747123]
[1770502167118,0.61484751,2107.4,2106.3,0.57747123]
[1770502168224,0.61484751,2107.4,2106.4,0.57747123]
[1770502172834,0.61484751,2107.3,2106.4,0.57747123]
[1770502173239,0.61484751,2107.2,2106.4,0.57747123]
[1770502174843,0.61484751,2107.2,2106.1,0.00393097]
[1770502175048,0.61484751,2107.1,2106.2,0.57747123]
[1770502178547,0.66049918,2106.9,2106.2,0.57747123]
[1770502178744,0.66580944,2106.9,2106.2,0.57747123]
[1770502180250,43.24867503,2106.9,2106.2,0.57747123]
[1770502180550,0.66049918,2106.8,2106.2,0.57747123]
[1770502180851,0.23398993,2106.8,2106.2,0.57747123]
[1770502185851,0.27727128,2106.3,2105.8,0.69673605]
[1770502186458,0.27727128,2106.3,2105.7,0.33530831]
[1770502186956,0.27727128,2106.3,2105.7,0.33943215]
[1770502187346,0.27727128,2106.3,2105.7,0.00412384]
[1770502190652,0.66049918,2105.8,2104.9,0.69673605]
[1770502190853,0.66049918,2105.7,2104.9,0.69673605]
[1770502191554,0.66049918,2105.7,2104.9,0.70097327]
[1770502194255,48.260581,2106.1,2104.9,0.70097327]
[1770502194460,0.66049918,2106.1,2104.9,0.70097327]
[1770502197357,0.66049918,2106.0,2104.9,0.70097327]
[1770502197554,0.66049918,2105.9,2104.9,0.00423722]
[1770502197759,0.66049918,2105.7,2104.9,0.00423722]
[1770502200360,0.66049918,2105.2,2104.2,0.69673605]
[1770502200560,0.66049918,2104.9,2103.9,0.69673605]
[1770502201366,0.66565796,2104.9,2103.9,0.70092917]
[1770502204466,0.00515878,2104.9,2103.9,0.70092917]
[1770502205063,0.66565796,2104.9,2103.9,0.70092917]
[1770502211571,0.97573927,2104.8,2103.9,0.00419312]
[1770502211773,0.97573927,2104.8,2103.9,0.93463336]
[1770502213771,0.97573927,2104.8,2103.9,0.00419312]
[1770502213969,0.97573927,2104.8,2103.9,0.93463336]
[1770502217874,0.00515878,2104.9,2103.9,0.93463336]
[1770502218778,0.93691711,2105.6,2104.0,0.93044024]
[1770502218972,0.93691711,2105.6,2104.1,0.93044024]
[1770502219476,0.93691711,2105.6,2104.2,0.93044024]
[1770502219974,0.94298827,2105.6,2104.2,0.93044024]
[1770502220369,0.94298827,2105.6,2104.4,0.93044024]
[1770502220569,0.93691711,2105.5,2104.4,0.93044024]
[1770502220976,0.93691711,2105.4,2104.4,0.93044024]
[1770502223783,0.93691711,2105.3,2104.4,0.93044024]
[1770502224272,43.5197827,2105.4,2104.4,0.93044024]
[1770502224478,0.93691711,2105.4,2104.4,0.93044024]
[1770502225572,0.93691711,2105.3,2104.4,0.93044024]
[1770502226382,0.93691711,2105.2,2104.4,0.93044024]
[1770502228785,0.93691711,2105.1,2104.4,0.93044024]
[1770502231279,0.93691711,2105.1,2104.0,4.26800735]
[1770502231280,0.93691711,2104.9,2104.0,2.81865415]
[1770502231480,0.93691711,2104.8,2104.0,0.93044024]
[1770502231682,42.58286559,2105.0,2104.0,0.93044024]
[1770502231884,0.93691711,2104.9,2104.1,0.93044024]
[1770502233586,0.93691711,2104.8,2104.1,0.93044024]
[1770502236590,0.93691711,2104.8,2104.0,0.87862149]
[1770502238692,43.40037038,2105.3,2104.3,0.87862149]
[1770502238997,0.81750479,2105.3,2104.4,0.87862149]
[1770502243999,43.40037038,2105.5,2104.6,0.87862149]
[1770502244202,0.81750479,2105.4,2104.6,0.87862149]
[1770502244707,42.58286559,2105.5,2104.6,0.87862149]
[1770502244913,43.40644154,2105.6,2104.7,0.87862149]
[1770502245113,0.81750479,2105.5,2104.7,0.87862149]
[1770502248015,0.81750479,2105.3,2104.5,0.87862149]
[1770502248216,0.81750479,2105.2,2104.5,0.87862149]
[1770502249015,0.81750479,2105.1,2104.5,0.87862149]
[1770502249521,0.81750479,2104.9,2104.1,0.87862149]
[1770502249820,0.81750479,2104.8,2104.0,0.87862149]
[1770502253319,0.81750479,2104.7,2104.0,0.87862149]
[1770502266225,0.77316197,2104.8,2104.0,0.87862149]
[1770502268926,0.76316197,2105.2,2104.3,0.74891073]
[1770502269118,0.76316197,2105.4,2104.4,0.74891073]
[1770502269324,0.76316197,2105.4,2104.5,0.74891073]
[1770502270827,0.76316197,2105.4,2104.6,0.74891073]
[1770502273626,0.76316197,2105.4,2104.5,0.69024183]
[1770502273931,0.74152517,2105.2,2104.5,0.69024183]
[1770502275632,0.74152517,2105.2,2104.3,0.69024183]
[1770502278029,0.74152517,2105.0,2104.1,0.69024183]
[1770502278326,0.74152517,2104.7,2103.9,0.69443495]
[1770502279834,0.74152517,2104.5,2103.9,0.00419312]
[1770502280133,0.74152517,2104.4,2103.9,0.00419312]
[1770502280830,0.74152517,2104.4,2103.7,0.69024183]
[1770502281831,0.74152517,2104.4,2103.7,0.69417514]
[1770502283039,0.74152517,2104.4,2103.7,0.00393331]
[1770502285438,0.74152517,2104.3,2103.2,0.69024183]
[1770502285938,0.74152517,2104.2,2103.2,0.69024183]
[1770502286637,0.74152517,2104.2,2103.2,0.69593957]
[1770502289242,0.74152517,2104.2,2103.2,0.00569774]
[1770502289834,0.74152517,2104.2,2103.2,0.69593957]
[1770502301349,0.74152517,2104.2,2103.3,0.63213293]
[1770502303244,0.74152517,2104.2,2103.4,0.63213293]
[1770502306252,0.74152517,2104.2,2103.5,0.63213293]
[1770502311655,0.74152517,2104.2,2103.4,3.47275506]
[1770502311958,42.58286559,2103.8,2102.9,0.63809642]
[1770502312152,42.58286559,2103.9,2102.9,0.63809642]
[1770502312849,42.58876488,2103.9,2102.9,0.64300678]
[1770502313252,0.19690288,2103.8,2102.9,0.64300678]
[1770502313654,0.19690288,2103.8,2103.0,0.64391653]
[1770502313855,3.03480275,2103.9,2103.0,0.64391653]
[1770502314059,0.1851466,2103.8,2103.0,0.64391653]
[1770502314259,0.1851466,2103.7,2103.0,0.64391653]
[1770502315860,2.84375686,2103.8,2103.0,0.64391653]
[1770502316060,3.0249851,2103.9,2103.0,0.64391653]
[1770502316260,0.16966037,2103.8,2103.0,0.64391653]
[1770502321358,2.84965615,2103.9,2103.1,0.63677475]
[1770502321359,0.00589929,2103.9,2103.1,0.63677475]
[1770502321556,0.00589929,2103.9,2103.1,6.31027145]
[1770502321752,0.00589929,2103.9,2103.2,0.63769684]
[1770502322663,0.15307544,2104.4,2103.4,0.63469266]
[1770502323663,0.15698482,2104.4,2103.4,0.63469266]
[1770502324365,0.00390938,2104.4,2103.4,0.63469266]
[1770502326865,0.14731414,2104.4,2103.4,0.63469266]
[1770502329465,0.12152794,2104.0,2103.2,0.69262353]
[1770502332680,0.09700552,2103.9,2103.2,0.69262353]
[1770502336180,2.84375686,2104.0,2103.2,0.69262353]
[1770502336481,0.07993097,2103.9,2103.2,0.69262353]
[1770502344487,2.84375686,2104.0,2103.2,0.69262353]
[1770502344683,2.88065516,2104.0,2103.2,0.69262353]
[1770502344985,0.0368983,2103.9,2103.2,0.69262353]
[1770502346685,0.23795,2102.7,2101.4,5.69006013]
[1770502346877,2.83753446,2102.0,2101.6,0.67386578]
[1770502347083,2.83753446,2102.3,2101.8,0.67386578]
[1770502347377,2.83753446,2102.6,2102.0,0.67386578]
[1770502347582,2.83753446,2102.6,2102.0,0.00554153]
[1770502347583,0.09609319,2102.5,2102.0,0.00554153]
[1770502347785,0.09609319,2102.5,2101.2,0.3254113]
[1770502347786,0.09609319,2102.2,2101.5,0.67386578]
[1770502348086,2.83753446,2102.4,2101.6,0.67386578]
[1770502348387,4.08471392,2102.3,2101.6,0.67386578]
[1770502348588,0.65913716,2102.4,2101.6,0.67386578]
[1770502348790,4.74382973,2102.3,2101.8,0.67386578]
[1770502349088,0.65913716,2102.3,2101.8,0.67386578]
[1770502350391,0.65913716,2102.3,2101.6,0.67920626]
[1770502350588,0.65913716,2102.3,2101.7,18.56183008]
[1770502351086,0.65913716,2102.3,2101.6,0.67920626]
[1770502351280,0.65913716,2102.3,2101.6,19.24103634]
[1770502351690,0.65913716,2102.3,2101.6,18.56717056]
[1770502351989,0.65913716,2102.1,2101.6,0.00534048]
[1770502352180,0.65913716,2102.1,2100.4,0.67386578]
[1770502352385,0.65913716,2102.1,2101.4,0.67386578]
[1770502352789,0.65913716,2102.1,2101.5,18.56183008]
[1770502353087,0.65913716,2102.1,2101.5,18.56736124]
[1770502353684,0.65913716,2102.1,2101.6,0.67386578]
[1770502353886,0.66451931,2102.6,2101.6,0.67386578]
[1770502354193,0.66451931,2102.6,2101.5,18.56736124]
[1770502354194,0.66451931,2102.6,2101.8,0.67386578]
[1770502355886,0.66451931,2102.6,2102.0,1.63475014]
[1770502356290,0.66451931,2102.6,2102.2,1.63475014]
[1770502356693,0.66451931,2102.6,2102.2,1.13475014]
[1770502357289,0.55247638,2102.0,2101.5,15.11381476]
[1770502357695,0.55247638,2102.0,2101.5,16.80476829]
[1770502358294,0.55247638,2102.0,2101.5,16.8093738]
[1770502359396,0.55247638,2102.0,2101.5,15.11842027]
[1770502360297,0.28927386,2102.2,2101.5,15.11842027]
[1770502360494,0.27689963,2102.0,2101.5,16.79885187]
[1770502362798,0.27689963,2102.0,2101.5,16.29885187]
[1770502363899,0.27689963,2102.0,2101.5,16.30306841]
[1770502364300,0.27689963,2102.0,2101.6,1.69196184]
[1770502365197,3.27471889,2102.4,2101.8,1.69224884]
[1770502365405,0.22571339,2102.5,2101.8,1.69224884]
[1770502365701,3.97892511,2102.4,2102.0,1.69835433]
[1770502366004,0.21350242,2102.4,2102.0,1.69835433]
[1770502366197,0.21350242,2102.4,2102.0,16.3167746]
[1770502369901,0.21350242,2102.4,2102.0,1.69835433]
[1770502371204,3.02452792,2102.4,2102.0,1.69835433]
[1770502373307,2.8110255,2102.3,2102.0,1.69835433]
[1770502374212,2.8110255,2102.2,2102.0,1.69835433]
[1770502374707,6.83704814,2102.2,2102.0,1.69835433]
[1770502374904,6.83704814,2102.2,2102.0,16.25317041]
[1770502375095,2.8110255,2102.1,2102.0,16.25317041]
[1770502375295,6.83704814,2102.1,2102.0,10.30159239]
[1770502376103,42.56301696,2102.1,2102.0,10.30159239]
[1770502376501,35.43507491,2102.2,2102.0,8.16884225]
[1770502377006,2.00504984,2102.3,2102.0,8.16884225]
[1770502378307,2.00504984,2102.3,2102.0,8.87433069]
[1770502379301,7.66589073,2102.4,2102.1,0.71556634]
[1770502379507,1.99211087,2102.6,2102.1,0.71556634]
[1770502379707,1.99211087,2102.6,2102.3,0.72375253]
[1770502379908,1.99211087,2102.6,2101.7,0.72375253]
[1770502380411,1.99211087,2102.6,2101.8,8.16884225]
[1770502380412,1.98672872,2102.5,2101.8,8.16884225]
[1770502380606,1.98703528,2102.4,2101.6,8.87598283]
[1770502381412,1.98703528,2102.4,2101.7,0.69188807]
[1770502382011,1.98703528,2102.4,2101.5,0.72789679]
[1770502382212,1.98703528,2102.4,2101.7,8.16884225]
[1770502383305,1.98703528,2102.4,2101.5,0.00421654]
[1770502383306,3.46944235,2102.4,2101.5,0.00421654]
[1770502383506,1.97149871,2102.3,2101.4,0.69124549]
[1770502384412,1.97149871,2102.3,2101.4,0.69654137]
[1770502384806,2.20948871,2102.3,2100.9,3.599408]
[1770502385013,1.93323178,2102.1,2100.9,0.75200678]
[1770502385312,1.93323178,2102.1,2101.0,0.75200678]
[1770502385519,2.34682875,2102.0,2100.8,1.30701764]
[1770502386009,2.34682875,2101.9,2100.8,1.31166483]
[1770502390513,2.34682875,2101.9,2100.8,0.00464719]
[1770502392916,2.34682875,2101.9,2100.8,1.19603403]
[1770502394413,8.49918252,2102.2,2100.4,2.84740122]
[1770502394414,2.36341065,2101.1,2100.4,2.84740122]
[1770502394619,2.36341065,2101.1,2100.0,1.12886133]
[1770502395210,2.36341065,2101.1,2100.1,1.12886133]
[1770502395414,2.36819426,2101.1,2100.1,1.13336698]
[1770502399620,2.36341065,2100.9,2099.8,1.03583982]
[1770502400422,2.36341065,2100.7,2099.2,1.01828802]
[1770502400724,2.36341065,2100.7,2099.2,1.02251196]
[1770502401827,2.36341065,2100.7,2099.3,1.0295334]
[1770502404628,2.36341065,2100.2,2099.2,0.00422394]
[1770502405629,2.36341065,2100.0,2098.6,0.95749384]
[1770502406634,2.36341065,2100.0,2098.6,0.96149313]
[1770502407634,2.36341065,2099.9,2098.6,0.96149313]
[1770502407833,2.60168065,2099.9,2098.6,0.96149313]
[1770502408138,2.60168065,2099.9,2098.6,0.00399929]
[1770502409036,2.36341065,2099.7,2098.6,0.00399929]
[1770502409840,2.60170065,2099.7,2098.6,0.00399929]
[1770502410042,2.36341065,2099.5,2098.6,0.00399929]
[1770502410244,2.36738192,2099.5,2098.1,0.94888159]
[1770502410746,2.36738192,2099.5,2097.4,0.95173841]
[1770502411337,2.36738192,2099.5,2097.4,0.95514115]
[1770502411741,2.36738192,2099.5,2097.5,0.91912569]
[1770502411940,2.36738192,2099.5,2097.6,0.91912569]
[1770502412147,2.36738192,2099.5,2097.7,0.91912569]
[1770502412348,2.36341065,2099.2,2097.7,0.91912569]
[1770502412550,2.36341065,2099.1,2097.7,0.91912569]
[1770502418353,2.56636614,2098.9,2097.5,0.70029984]
[1770502418553,2.32798614,2098.7,2097.5,0.70029984]
[1770502424960,2.32798614,2098.0,2097.1,0.55636812]
[1770502425258,2.32798614,2097.8,2096.6,0.00340274]
[1770502425960,7.09298614,2097.8,2096.3,0.03749884]
[1770502426159,2.32798614,2097.4,2096.6,0.00481298]
[1770502426457,2.32798614,2097.0,2096.2,0.01307539]
[1770502427261,2.32798614,2097.0,2095.7,0.06724727]
[1770502428260,2.32798614,2097.0,2095.8,0.12174099]
[1770502428658,2.32798614,2097.6,2095.8,0.12174099]
[1770502429053,2.32798614,2097.6,2096.0,0.12086225]
[1770502429256,2.3337604,2097.8,2096.2,0.23868]
[1770502429464,2.3337604,2097.8,2096.3,0.10688924]
[1770502432960,2.3337604,2097.8,2096.6,0.23864]
[1770502433164,2.3337604,2097.8,2096.7,0.0361051]
[1770502434969,0.00577426,2097.8,2096.7,0.0361051]
[1770502435169,2.3337604,2097.8,2096.7,0.0361051]
[1770502437770,0.00577426,2097.8,2096.9,0.2386]
[1770502438068,2.32798614,2098.2,2097.0,1.17630142]
[1770502438273,2.32798614,2098.4,2097.2,0.92294042]
[1770502438470,2.32798614,2099.0,2097.4,0.92294042]
[1770502438977,2.33246008,2099.0,2097.9,0.92191748]
[1770502445173,0.00447394,2099.0,2098.2,0.89061576]
[1770502446382,2.08867379,2100.1,2098.3,0.85960963]
[1770502447378,2.09370603,2100.1,2098.3,0.85960963]
[1770502447680,2.08867379,2099.8,2098.1,0.90037861]
[1770502447879,2.08867379,2099.6,2098.1,0.90037861]
[1770502450283,2.08867379,2099.6,2097.8,0.86745639]
[1770502450881,2.08867379,2099.6,2098.0,0.8519068]
[1770502453979,2.08867379,2099.6,2098.1,0.79815237]
[1770502454782,2.08867379,2099.6,2098.2,1.02129322]
[1770502455081,2.08867379,2099.6,2098.3,0.78284322]
[1770502456395,2.08867379,2099.6,2098.4,0.75807709]
[1770502457799,2.08867379,2099.6,2098.6,0.73964353]
[1770502466312,2.08867379,2099.6,2098.7,0.60315185]
[1770502467314,2.08867379,2099.6,2098.8,0.58851386]
[1770502468014,2.08867379,2099.6,2098.9,0.58763369]
[1770502468214,2.08867379,2099.6,2098.9,0.59155138]
[1770502469116,1.96090596,2100.0,2099.0,0.57304903]
[1770502469414,1.96090596,2100.0,2099.1,0.55957421]
[1770502471817,1.9659382,2100.1,2099.4,0.56357596]
[1770502472021,1.9659382,2100.1,2099.5,0.56357596]
[1770502472621,0.00503224,2100.1,2099.5,3.40280676]
[1770502472818,0.00503224,2100.1,2099.6,0.54907649]
[1770502473621,0.00503224,2100.1,2099.7,0.52292702]
[1770502475116,1.96090596,2100.3,2099.7,0.52292702]
[1770502476322,1.96691161,2100.3,2099.7,0.52292702]
[1770502477722,0.00600565,2100.3,2099.7,0.52292702]
[1770502478616,1.83536132,2100.6,2099.7,3.36215782]
[1770502478817,1.83536132,2101.3,2100.0,0.43924003]
[1770502479624,1.83886193,2101.3,2100.0,0.43924003]
[1770502480925,1.83886193,2101.3,2099.9,0.41234078]
[1770502483324,1.83886193,2101.3,2100.0,0.37614754]
[1770502483635,1.83886193,2101.3,2100.1,0.37398542]
[1770502484230,1.83886193,2101.3,2100.2,0.37398542]
[1770502487426,1.83886193,2101.3,2100.1,0.31748836]
[1770502489639,1.83886193,2101.3,2099.9,0.2789893]
[1770502493336,1.83886193,2101.3,2099.9,0.22308751]
[1770502493743,1.83886193,2101.3,2100.0,0.22015336]
[1770502495243,1.83886193,2101.3,2100.1,0.20682815]
[1770502497848,1.83886193,2101.3,2100.3,0.18060632]
[1770502498248,1.83886193,2101.3,2100.4,0.18060632]
[1770502498451,1.83886193,2101.3,2100.4,0.18408773]
[1770502501357,1.83886193,2101.3,2100.5,0.14737117]
[1770502501758,1.83886193,2101.3,2100.4,2.84271221]
[1770502502058,1.83886193,2101.3,2100.4,0.13445307]
[1770502502560,1.83886193,2101.3,2100.4,0.00348141]
[1770502503259,1.83886193,2101.3,2100.4,2.94868614]
[1770502503462,1.83886193,2101.3,2100.7,0.10463693]
[1770502503965,1.83886193,2101.3,2100.8,0.10463693]
[1770502504464,1.83886193,2101.3,2100.7,2.93093741]
[1770502505163,1.83886193,2101.3,2100.8,0.09170661]
[1770502508756,1.83886193,2101.3,2100.7,7.11033463]
[1770502508960,1.83886193,2101.3,2100.7,2.8392308]
[1770502511060,1.83886193,2101.3,2100.6,2.8392308]
[1770502511966,1.83886193,2101.3,2100.5,7.11033463]
[1770502512165,1.83886193,2101.3,2100.6,2.8392308]
[1770502513064,1.83886193,2101.3,2100.4,0.00348141]
[1770502513365,0.62766144,2101.2,2100.2,0.81459891]
[1770502513665,0.63001271,2101.1,2100.1,1.63710306]
[1770502513867,0.63001271,2100.8,2099.9,1.63710306]
[1770502514269,0.63001271,2100.8,2099.9,1.6408409]
[1770502514568,0.63001271,2100.8,2099.9,0.00373784]
[1770502514759,1.02116397,2100.3,2099.2,5.64142879]
[1770502514963,1.02116397,2100.3,2099.2,1.63710306]
[1770502515471,1.00820598,2100.2,2099.2,1.63710306]
[1770502515969,1.00820598,2100.2,2099.2,1.64176059]
[1770502516163,3.8457588,2100.2,2099.2,0.00465753]
[1770502516358,1.03048753,2100.0,2099.2,0.00465753]
[1770502516964,1.03048753,2100.0,2099.0,1.63710306]
[1770502517757,1.03048753,2100.0,2098.8,1.63710306]
[1770502517960,1.03048753,2100.0,2098.8,1.64226408]
[1770502518168,1.08039283,2099.9,2098.8,1.64226408]
[1770502523473,1.08039283,2099.9,2098.8,1.96416538]
[1770502526469,1.62096929,2099.7,2098.4,1.63710306]
[1770502526870,1.62096929,2099.5,2098.4,1.63710306]
[1770502527469,1.62553773,2099.5,2098.4,1.64248959]
[1770502527668,3.11042728,2099.5,2098.4,0.00538653]
[1770502527870,1.62096929,2099.4,2098.4,0.00538653]
[1770502528070,1.62096929,2099.4,2098.2,1.63710306]
[1770502528468,1.62096929,2099.4,2098.1,1.63710306]
[1770502529071,1.62096929,2099.4,2098.1,1.64106731]
[1770502529369,1.62096929,2099.4,2098.1,0.00396425]
[1770502529574,1.62096929,2099.0,2097.9,1.63710306]
[1770502529765,1.62096929,2099.0,2097.1,1.63710306]
[1770502530171,1.62096929,2099.0,2097.1,1.95299827]
[1770502530373,1.62096929,2098.8,2097.1,1.95299827]
[1770502530572,1.62096929,2098.8,2097.1,1.95825683]
[1770502533876,0.2384,2098.7,2097.1,1.95825683]
[1770502534180,1.85937929,2098.6,2097.1,1.95825683]
[1770502534582,1.62096929,2098.4,2097.1,1.95825683]
[1770502537780,1.62096929,2098.4,2097.1,2.19683683]
[1770502537975,1.62096929,2098.4,2097.2,2.6017597]
[1770502538180,2.60498573,2099.0,2097.2,2.8403297]